bitfinex/quotes_BTCUSD_20260127
["timestamp","ask_amount","ask_price","bid_price","bid_amount"]
[1769509111300,0.04326831,88066.0,88052.0,0.01135692]
[1769509113336,0.04326831,88066.0,88053.0,0.06814068]
[1769509113556,0.05097918,88066.0,88054.0,0.01135666]
[1769509113775,0.03652153,88065.0,88054.0,0.06813976]
[1769509113974,0.03652153,88065.0,88054.0,0.01135666]
[1769509114116,0.03652153,88065.0,88053.0,0.06814068]
[1769509114801,0.03652153,88065.0,88054.0,0.01135666]
[1769509115221,0.03652153,88065.0,88053.0,0.01135679]
[1769509115369,0.03652153,88065.0,88054.0,0.06813997]
[1769509116201,0.03652153,88065.0,88054.0,0.01135666]
[1769509117218,0.03652153,88065.0,88052.0,0.01135692]
[1769509117839,0.03652153,88065.0,88053.0,0.01135679]
[1769509118040,0.03652153,88065.0,88053.0,0.06814071]
[1769509118756,0.03652153,88065.0,88054.0,0.01135666]
[1769509119532,0.03652153,88065.0,88053.0,0.06814071]
[1769509119731,0.03652153,88065.0,88054.0,0.01135666]
[1769509120533,0.03652153,88065.0,88053.0,0.01135679]
[1769509120919,0.03652153,88065.0,88053.0,0.05678393]
[1769509121726,0.03652153,88065.0,88053.0,0.01135679]
[1769509123489,0.03652153,88065.0,88054.0,0.01135666]
[1769509123667,0.03652153,88065.0,88053.0,0.06814029]
[1769509123846,0.03652153,88065.0,88053.0,0.01135679]
[1769509124381,0.03652153,88065.0,88054.0,0.01135666]
[1769509125391,0.03652153,88065.0,88054.0,0.06813988]
[1769509125621,0.03652153,88065.0,88055.0,0.06813918]
[1769509125796,0.03652153,88065.0,88055.0,0.06813919]
[1769509125960,0.03652153,88065.0,88055.0,0.01135653]
[1769509126940,0.03652153,88065.0,88052.0,0.01135692]
[1769509127174,0.03652153,88065.0,88054.0,0.01135666]
[1769509127636,0.03652153,88065.0,88053.0,0.06814018]
[1769509127831,0.03652153,88065.0,88052.0,0.06814029]
[1769509128036,0.03652153,88065.0,88053.0,0.01135679]
[1769509128263,0.03652153,88065.0,88054.0,0.01135666]
[1769509128676,0.03652153,88065.0,88050.0,0.14393756]
[1769509128875,0.03652153,88065.0,88052.0,0.01135692]
[1769509129097,0.03652153,88065.0,88051.0,0.06814208]
[1769509129254,0.03652153,88065.0,88051.0,0.01135705]
[1769509129673,0.03652153,88065.0,88052.0,0.01135692]
[1769509129878,0.03652153,88065.0,88052.0,0.06814115]
[1769509130306,0.03652153,88065.0,88050.0,0.20072315]
[1769509130509,0.03652153,88065.0,88051.0,0.01135705]
[1769509130721,0.03652153,88065.0,88050.0,0.06814257]
[1769509130999,0.03652153,88065.0,88051.0,0.01135705]
[1769509131413,0.03652153,88065.0,88051.0,0.06814224]
[1769509131606,0.03652153,88065.0,88052.0,0.06814117]
[1769509131845,0.03652153,88065.0,88054.0,0.01135666]
[1769509133252,0.11376012,88064.0,88054.0,0.01135666]
[1769509133393,0.02752537,88065.0,88054.0,0.01135666]
[1769509133591,0.11376012,88064.0,88055.0,0.01135653]
[1769509133818,0.02752537,88064.0,88055.0,0.01135653]
[1769509135379,0.02752537,88064.0,88056.0,0.0113564]
[1769509135526,0.02752537,88064.0,88056.0,0.06813826]
[1769509135736,0.02752537,88064.0,88056.0,0.0113564]
[1769509135941,0.02752537,88064.0,88055.0,0.06813905]
[1769509136158,0.02752537,88064.0,88056.0,0.0113564]
[1769509137264,0.02752537,88064.0,88054.0,0.06813956]
[1769509137472,0.02752537,88064.0,88055.0,0.01135653]
[1769509139050,0.11668,88063.0,88056.0,0.0113564]
[1769509139386,0.11668,88063.0,88055.0,0.06813914]
[1769509139613,0.11668,88063.0,88056.0,0.06813816]
[1769509139973,0.11668,88063.0,88056.0,0.0113564]
[1769509140936,0.11668,88063.0,88055.0,0.01135653]
[1769509141070,0.14420537,88063.0,88054.0,0.06813972]
[1769509141294,0.09094414,88075.0,88066.0,0.01135512]
[1769509141510,0.2304411,88074.0,88066.0,0.13067756]
[1769509141724,0.11668,88074.0,88066.0,0.13067756]
[1769509147233,0.11668,88074.0,88062.0,0.01135563]
[1769509147405,0.11668,88074.0,88061.0,0.14203332]
[1769509147615,0.11668,88074.0,88062.0,0.03918616]
[1769509147832,0.11668,88074.0,88062.0,0.02783053]
[1769509148037,0.11668,88074.0,88061.0,0.19881207]
[1769509148784,0.11668,88074.0,88062.0,0.01135563]
[1769509149161,0.11668,88074.0,88061.0,0.19881207]
[1769509149375,0.11668,88074.0,88063.0,0.0113555]
[1769509151340,0.11668,88074.0,88063.0,0.06813292]
[1769509151720,0.11668,88074.0,88064.0,0.01135537]
[1769509151892,0.11668,88074.0,88063.0,0.06813292]
[1769509152123,0.11668,88074.0,88063.0,0.0113555]
[1769509153079,0.11668,88074.0,88064.0,0.01135537]
[1769509153455,0.11668,88074.0,88063.0,0.0113555]
[1769509154963,0.13118069,88074.0,88064.0,0.0012028]
[1769509159354,0.09094414,88087.0,88060.0,0.05677906]
[1769509159355,0.09108964,88097.0,88080.0,0.05676634]
[1769509159612,0.09108964,88097.0,88077.0,0.0113537]
[1769509159613,0.09108964,88097.0,88079.0,0.01135344]
[1769509159614,0.02977452,88093.0,88079.0,0.01135344]
[1769509159824,0.02977452,88093.0,88080.0,0.05676644]
[1769509160032,0.12804186,88097.0,88073.0,0.13067756]
[1769509160033,0.02992002,88089.0,88075.0,0.01135395]
[1769509160236,0.02992002,88089.0,88069.0,0.01135473]
[1769509160237,0.12789636,88083.0,88069.0,0.01135473]
[1769509160444,0.36806356,88080.0,88067.0,0.06812967]
[1769509160650,0.33828904,88080.0,88064.0,0.14203293]
[1769509160885,0.02977452,88079.0,88067.0,0.01135499]
[1769509161089,0.06835068,88079.0,88068.0,0.01135486]
[1769509161305,0.4661854,88080.0,88065.0,0.0681314]
[1769509161306,0.12573953,88078.0,88065.0,0.0681314]
[1769509161510,0.02977452,88077.0,88067.0,0.06812991]
[1769509161737,0.02977452,88077.0,88068.0,0.01135486]
[1769509161939,0.02977452,88077.0,88067.0,0.01135499]
[1769509162256,0.02977452,88077.0,88068.0,0.01135486]
[1769509162464,0.02977452,88077.0,88069.0,0.06812783]
[1769509162671,0.02977452,88077.0,88069.0,0.01135473]
[1769509163240,0.02977452,88077.0,88065.0,0.01135524]
[1769509163465,0.02977452,88077.0,88068.0,0.01135486]
[1769509163644,0.02977452,88077.0,88067.0,0.0681299]
[1769509164086,0.02977452,88077.0,88067.0,0.01135499]
[1769509164492,0.02977452,88077.0,88068.0,0.01135486]
[1769509164732,0.02977452,88077.0,88069.0,0.01135473]
[1769509164928,0.02977452,88077.0,88068.0,0.01135486]
[1769509165133,0.02977452,88077.0,88069.0,0.01135473]
[1769509165504,0.02977452,88077.0,88067.0,0.01135499]
[1769509165717,0.02977452,88077.0,88068.0,0.0681289]
[1769509165923,0.02977452,88077.0,88069.0,0.01135473]
[1769509166625,0.02977452,88077.0,88068.0,0.06812911]
[1769509167101,0.02977452,88077.0,88067.0,0.01135499]
[1769509167278,0.02977452,88077.0,88066.0,0.05677519]
[1769509167478,0.02977452,88077.0,88068.0,0.06812897]
[1769509167686,0.02977452,88077.0,88068.0,0.01135486]
[1769509169535,0.02977452,88077.0,88067.0,0.06812976]
[1769509169740,0.02977452,88077.0,88068.0,0.01135486]
[1769509169997,0.02977452,88077.0,88069.0,0.01135473]
[1769509170179,0.02977452,88077.0,88068.0,0.01135486]
[1769509170341,0.02977452,88077.0,88069.0,0.01135473]
[1769509170553,0.02977452,88077.0,88067.0,0.01135499]
[1769509170768,0.02977452,88077.0,88068.0,0.01135486]
[1769509170969,0.02977452,88077.0,88069.0,0.01135473]
[1769509171176,0.02977452,88077.0,88068.0,0.06812893]
[1769509171177,0.02977452,88077.0,88068.0,0.01135486]
[1769509171943,0.02977452,88077.0,88069.0,0.01135473]
[1769509172330,0.02977452,88077.0,88068.0,0.06812909]
[1769509172538,0.02977452,88077.0,88069.0,0.01135473]
[1769509172743,0.02977452,88077.0,88070.0,0.0113546]
[1769509173331,0.02977452,88077.0,88071.0,0.01135447]
[1769509173531,0.02302733,88083.0,88071.0,0.01135447]
[1769509173733,0.02302733,88083.0,88072.0,0.01135434]
[1769509173977,0.02295722,88088.0,88074.0,0.01135408]
[1769509174137,0.02295722,88088.0,88076.0,0.01135383]
[1769509174346,0.0001455,88089.0,88077.0,0.0113537]
[1769509174974,0.0001455,88089.0,88078.0,0.01135357]
[1769509175377,0.0001455,88089.0,88079.0,0.34964248]
[1769509176241,0.0001455,88089.0,88079.0,0.40640962]
[1769509176447,0.0001455,88089.0,88080.0,0.01135331]
[1769509176624,0.0001455,88089.0,88079.0,0.34964248]
[1769509176837,0.0001455,88089.0,88079.0,0.33828904]
[1769509177029,0.11665575,88093.0,88079.0,0.01135344]
[1769509177232,0.13961297,88093.0,88079.0,0.06812032]
[1769509177448,0.13961297,88093.0,88079.0,0.06812026]
[1769509177640,0.13961297,88093.0,88080.0,0.05676647]
[1769509177847,0.13961297,88093.0,88082.0,0.05676506]
[1769509178027,0.0001455,88097.0,88082.0,0.01135305]
[1769509178249,0.0001455,88097.0,88082.0,0.06811802]
[1769509178426,0.0001455,88097.0,88083.0,0.01135292]
[1769509178848,0.02310272,88097.0,88083.0,0.01135292]
[1769509179052,0.02310272,88097.0,88082.0,0.06811802]
[1769509179267,0.02310272,88097.0,88083.0,0.01135292]
[1769509179490,0.02310272,88097.0,88083.0,0.06811739]
[1769509179491,0.02295722,88096.0,88083.0,0.06811739]
[1769509180932,0.02295722,88095.0,88079.0,0.07420602]
[1769509181108,0.1195191,88094.0,88081.0,0.01135318]
[1769509181506,0.14247632,88094.0,88080.0,0.05676608]
[1769509182335,0.14247632,88094.0,88080.0,0.01135331]
[1769509182619,0.14247632,88094.0,88081.0,0.01135318]
[1769509183020,0.14247632,88094.0,88080.0,0.06811975]
[1769509183228,0.14247632,88094.0,88080.0,0.01135331]
[1769509183449,0.14247632,88094.0,88081.0,0.01135318]
[1769509183680,0.14247632,88094.0,88080.0,0.06811957]
[1769509183894,0.14247632,88094.0,88082.0,0.01135305]
[1769509184099,0.14247632,88094.0,88082.0,0.06811831]
[1769509184306,0.14247632,88094.0,88082.0,0.01135305]
[1769509184512,0.10836612,88094.0,88082.0,0.01135305]
[1769509184724,0.07425592,88094.0,88082.0,0.01135305]
[1769509184947,0.04014572,88094.0,88082.0,0.01135305]
[1769509185119,0.00603552,88094.0,88081.0,0.06811881]
[1769509185347,0.00603552,88094.0,88082.0,0.01135305]
[1769509185558,0.09144442,88095.0,88082.0,0.01135305]
[1769509185682,0.05733422,88095.0,88082.0,0.01135305]
[1769509185883,0.02322402,88095.0,88082.0,0.01135305]
[1769509186108,0.13159014,88096.0,88083.0,0.00616594]
[1769509186884,0.13159014,88096.0,88081.0,0.01135318]
[1769509187081,0.13159014,88096.0,88082.0,0.01135305]
[1769509187282,0.13159014,88096.0,88081.0,0.01135318]
[1769509188284,0.13159014,88096.0,88080.0,0.06811979]
[1769509188450,0.13159014,88096.0,88081.0,0.06811907]
[1769509188815,0.0001455,88097.0,88081.0,0.01135318]
[1769509189040,0.33828904,88110.0,88080.0,0.34964235]
[1769509189041,0.1195191,88104.0,88088.0,0.01135228]
[1769509189300,0.1195191,88102.0,88088.0,0.01135228]
[1769509189492,0.14247632,88102.0,88087.0,0.06811411]
[1769509189715,0.14247632,88102.0,88088.0,0.01135228]
[1769509190017,0.14247632,88102.0,88087.0,0.01135241]
[1769509190156,0.14247632,88102.0,88087.0,0.01752558]
[1769509190582,0.14247632,88102.0,88087.0,0.00617317]
[1769509190782,0.14247632,88102.0,88087.0,0.01752558]
[1769509191389,0.1195191,88109.0,88087.0,0.02270482]
[1769509191576,0.1199191,88105.0,88087.0,0.02270482]
[1769509191771,0.1195191,88103.0,88087.0,0.02270482]
[1769509191998,0.14247632,88102.0,88087.0,0.02270482]
[1769509193238,0.02295722,88102.0,88087.0,0.14697789]
[1769509193882,0.02295722,88102.0,88086.0,0.02436589]
[1769509194014,0.02295722,88102.0,88084.0,0.06811678]
[1769509194222,0.02295722,88102.0,88085.0,0.01135267]
[1769509194438,0.02295722,88102.0,88084.0,0.06811655]
[1769509194640,0.02295722,88102.0,88085.0,0.01135267]
[1769509195246,0.02295722,88102.0,88085.0,0.06811598]
[1769509195448,0.02295722,88102.0,88086.0,0.01135254]
[1769509196209,0.02295722,88102.0,88086.0,0.06811518]
[1769509196512,0.12783866,88097.0,88080.0,0.01135331]
[1769509196707,0.11750006,88097.0,88081.0,0.01135318]
[1769509196940,0.08339055,88097.0,88080.0,0.06811957]
[1769509197212,0.33800307,88090.0,88078.0,0.03482492]
[1769509197435,0.01513414,88101.0,88078.0,0.03482492]
[1769509197436,0.09372915,88095.0,88078.0,0.03482492]
[1769509198257,0.09372915,88095.0,88078.0,0.02347135]
[1769509198466,0.09372915,88095.0,88078.0,0.03482492]
[1769509198798,0.09372915,88095.0,88078.0,0.02347135]
[1769509199679,0.09372915,88095.0,88078.0,0.03482492]
[1769509199866,0.09372915,88095.0,88079.0,0.01135344]
[1769509200065,0.09372915,88095.0,88078.0,0.02347135]
[1769509200269,0.09372915,88095.0,88078.0,0.03482492]
[1769509200473,0.09372915,88095.0,88079.0,0.01135344]
[1769509200711,0.09372915,88095.0,88080.0,0.01135331]
[1769509200870,0.02377091,88096.0,88080.0,0.06811954]
[1769509201282,0.02377091,88096.0,88081.0,0.01135318]
[1769509201887,0.02377091,88096.0,88080.0,0.40612275]
[1769509202255,0.02377091,88096.0,88082.0,0.01135305]
[1769509202408,0.02377091,88096.0,88081.0,0.01135318]
[1769509202631,0.02377091,88096.0,88079.0,0.13642579]
[1769509202817,0.15160957,88095.0,88080.0,0.4061225]
[1769509203023,0.02377091,88095.0,88081.0,0.06811888]
[1769509203462,0.02377091,88095.0,88083.0,0.01135292]
[1769509203662,0.02377091,88095.0,88082.0,0.068118]
[1769509203868,0.02377091,88095.0,88083.0,0.01135292]
[1769509204806,0.0004,88105.0,88086.0,0.01135254]
[1769509205023,0.0004,88105.0,88087.0,0.00604817]
[1769509205250,0.02417091,88105.0,88086.0,0.12507235]
[1769509205448,0.02377091,88104.0,88087.0,0.00604835]
[1769509205651,0.12783866,88104.0,88087.0,0.00604835]
[1769509205850,0.15160957,88099.0,88087.0,0.00604835]
[1769509206057,0.15160957,88099.0,88081.0,0.01740211]
[1769509206278,0.15160957,88098.0,88081.0,0.00604893]
[1769509206491,0.02377091,88097.0,88081.0,0.00604893]
[1769509206868,0.02377091,88097.0,88080.0,0.37282773]
[1769509207068,0.02377091,88097.0,88080.0,0.36147442]
[1769509207317,0.02377091,88097.0,88080.0,0.37282773]
[1769509207523,0.02377091,88097.0,88080.0,0.49790008]
[1769509208373,0.02377091,88097.0,88081.0,0.01135318]
[1769509208573,0.07763376,88097.0,88080.0,0.55466654]
[1769509209102,0.07763376,88097.0,88081.0,0.0049135]
[1769509209309,0.07763376,88097.0,88081.0,0.01626668]
[1769509209674,0.07763376,88097.0,88082.0,0.01135305]
[1769509209872,0.07763376,88097.0,88083.0,0.00491356]
[1769509210079,0.07763376,88097.0,88083.0,0.01626648]
[1769509210512,0.02377091,88097.0,88083.0,0.01626648]
[1769509210712,0.02377091,88097.0,88083.0,0.14133883]
[1769509210917,0.02377091,88097.0,88083.0,0.1981033]
[1769509211078,0.02377091,88097.0,88084.0,0.01135279]
[1769509211281,0.02377091,88102.0,88085.0,0.01626612]
[1769509211580,0.02377091,88102.0,88086.0,0.12507235]
[1769509211782,0.02377091,88102.0,88087.0,0.00491334]
[1769509212422,0.02377091,88102.0,88087.0,0.12998569]
[1769509213022,0.02377091,88102.0,88088.0,0.02270456]
[1769509213664,0.00032574,88101.0,88088.0,0.02237893]
[1769509213893,0.00032574,88101.0,88084.0,0.02347135]
[1769509213894,0.02409665,88101.0,88084.0,0.02347135]
[1769509214116,0.02377091,88099.0,88081.0,0.01135318]
[1769509214291,0.00032574,88098.0,88081.0,0.01135318]
[1769509214768,0.00032574,88098.0,88082.0,0.01135305]
[1769509214947,0.00032574,88098.0,88081.0,0.12507235]
[1769509215558,0.00032574,88098.0,88081.0,0.13642553]
[1769509215757,0.00032574,88098.0,88081.0,0.12507235]
[1769509216301,0.00032574,88098.0,88081.0,0.13642553]
[1769509216814,0.04935958,88098.0,88081.0,0.13642553]
[1769509217816,0.07313049,88098.0,88081.0,0.12507235]
[1769509218016,0.07313049,88098.0,88081.0,0.13642553]
[1769509218961,0.07313049,88098.0,88082.0,0.01135305]
[1769509219178,0.07313049,88098.0,88081.0,0.13642553]
[1769509219383,0.05389722,88097.0,88081.0,0.13642553]
[1769509219606,0.00032574,88096.0,88082.0,0.01135305]
[1769509219762,0.00032574,88096.0,88081.0,0.13642553]
[1769509220566,0.00032574,88096.0,88082.0,0.01135305]
[1769509220769,0.00032574,88097.0,88081.0,0.19286575]
[1769509221013,0.00032574,88097.0,88082.0,0.01135305]
[1769509221461,0.00032574,88097.0,88083.0,0.01135292]
[1769509221852,0.0230685,88097.0,88082.0,0.01135305]
[1769509222050,0.0230685,88097.0,88083.0,0.01135292]
[1769509222935,0.0230685,88097.0,88082.0,0.01135305]
[1769509223067,0.0230685,88097.0,88083.0,0.01135292]
[1769509223653,0.01359489,88096.0,88083.0,0.01135292]
[1769509223860,0.01359489,88096.0,88086.0,0.01135254]
[1769509223861,0.00032574,88095.0,88086.0,0.01135254]
[1769509224053,0.00032574,88095.0,88085.0,0.01135267]
[1769509224260,0.00032574,88095.0,88086.0,0.01135254]
[1769509224466,0.00032574,88095.0,88086.0,0.06811489]
[1769509224673,0.00032574,88095.0,88086.0,0.01135254]
[1769509224895,0.00032574,88096.0,88086.0,0.01135254]
[1769509225876,0.00032574,88096.0,88085.0,0.06811577]
[1769509226072,0.00032574,88096.0,88080.0,0.34935638]
[1769509226250,0.00032574,88096.0,88084.0,0.01135279]
[1769509227238,0.00032574,88096.0,88085.0,0.01135267]
[1769509229032,0.00032574,88096.0,88086.0,0.02270508]
[1769509229497,0.00032574,88096.0,88084.0,0.01135279]
[1769509230589,0.00032574,88096.0,88085.0,0.02270534]
[1769509230812,0.00032574,88096.0,88086.0,0.01135254]
[1769509231049,0.00032574,88096.0,88087.0,0.02270482]
[1769509235325,0.12783866,88100.0,88087.0,0.02270482]
[1769509237716,0.12783866,88100.0,88087.0,0.03405723]
[1769509237918,0.12783866,88100.0,88087.0,0.02270482]
[1769509238438,0.12783866,88100.0,88087.0,0.03405723]
[1769509238986,0.02486169,88102.0,88087.0,0.09081928]
[1769509239191,0.02486169,88102.0,88087.0,0.02270482]
[1769509239394,0.13117323,88101.0,88083.0,0.09298441]
[1769509239596,0.02486169,88100.0,88084.0,0.06811672]
[1769509239801,0.02486169,88100.0,88085.0,0.06811587]
[1769509240648,0.02486169,88100.0,88085.0,0.01135267]
[1769509242048,0.02486169,88100.0,88086.0,0.01135254]
[1769509242388,0.02486169,88100.0,88085.0,0.06811583]
[1769509242664,0.02486169,88100.0,88086.0,0.01135254]
[1769509242863,0.02486169,88100.0,88084.0,0.06811672]
[1769509243031,0.02486169,88100.0,88085.0,0.01135267]
[1769509243270,0.02486169,88100.0,88086.0,0.01135254]
[1769509243645,0.36286476,88100.0,88083.0,0.02486705]
[1769509243980,0.02486169,88100.0,88083.0,0.03621997]
[1769509244595,0.02486169,88100.0,88083.0,0.02486705]
[1769509245001,0.02486169,88100.0,88083.0,0.03621997]
[1769509245809,0.02486169,88100.0,88084.0,0.01135279]
[1769509246105,0.02486169,88100.0,88085.0,0.01135267]
[1769509246723,0.02486169,88100.0,88084.0,0.0681167]
[1769509247343,0.02486169,88100.0,88085.0,0.01135267]
[1769509248626,0.02486169,88100.0,88084.0,0.0681167]
[1769509248872,0.02486169,88100.0,88083.0,0.09298451]
[1769509249250,0.02486169,88100.0,88083.0,0.02486705]
[1769509250428,0.02486169,88100.0,88083.0,0.03621997]
[1769509250564,0.02486169,88100.0,88084.0,0.01135279]
[1769509250761,0.02486169,88100.0,88083.0,0.09298436]
[1769509250991,0.02486169,88100.0,88084.0,0.13265886]
[1769509251589,0.02486169,88100.0,88085.0,0.01135267]
[1769509251974,0.02486169,88100.0,88085.0,0.14401153]
[1769509252186,0.02486169,88100.0,88085.0,0.20077467]
[1769509252598,0.02486169,88100.0,88086.0,0.13265886]
[1769509253209,0.02486169,88100.0,88087.0,0.00659868]
[1769509253790,0.0004,88105.0,88091.0,0.13265886]
[1769509253999,0.0004,88105.0,88090.0,0.33800307]
[1769509254000,0.1137127,88104.0,88092.0,0.13925716]
[1769509254323,0.1137127,88103.0,88092.0,0.13925716]
[1769509254481,0.1137127,88102.0,88092.0,0.13925716]
[1769509254690,0.0004,88105.0,88092.0,0.13925716]
[1769509254913,0.11371239,88104.0,88092.0,0.13925716]
[1769509255113,0.11371239,88103.0,88092.0,0.13925716]
[1769509255466,0.0004,88105.0,88092.0,0.13925716]
[1769509255467,0.11371239,88102.0,88092.0,0.13925716]
[1769509255608,0.0004,88105.0,88092.0,0.13925716]
[1769509255810,0.11370886,88104.0,88092.0,0.13925716]
[1769509256011,0.11370886,88103.0,88092.0,0.13925716]
[1769509256192,0.0004,88105.0,88092.0,0.13925716]
[1769509256392,0.11370342,88104.0,88092.0,0.13925716]
[1769509256588,0.11370342,88103.0,88092.0,0.13925716]
[1769509256846,0.0004,88105.0,88092.0,0.13925716]
[1769509257023,0.11370342,88104.0,88092.0,0.13925716]
[1769509257229,0.11370342,88103.0,88092.0,0.13925716]
[1769509257441,0.33797199,88110.0,88092.0,0.13925716]
[1769509257442,0.0225132,88109.0,88092.0,0.13925716]
[1769509257677,0.11369955,88108.0,88092.0,0.13925716]
[1769509257870,0.11369955,88107.0,88092.0,0.13925716]
[1769509258026,0.11369955,88106.0,88092.0,0.13925716]
[1769509258265,0.11369955,88105.0,88092.0,0.13925716]
[1769509258478,0.0225132,88109.0,88092.0,0.13925716]
[1769509258712,0.11369629,88108.0,88092.0,0.13925716]
[1769509258997,0.11369629,88107.0,88092.0,0.13925716]
[1769509259188,0.11369629,88106.0,88093.0,0.02270327]
[1769509259365,0.11369629,88105.0,88093.0,0.02270327]
[1769509259575,0.0225132,88109.0,88093.0,0.02270327]
[1769509259773,0.11369351,88108.0,88093.0,0.02270327]
[1769509259968,0.11369351,88107.0,88093.0,0.02270327]
[1769509260178,0.11369351,88106.0,88093.0,0.02270327]
[1769509260340,0.11369351,88105.0,88093.0,0.02270327]
[1769509260544,0.0225132,88109.0,88093.0,0.02270327]
[1769509260805,0.11369299,88108.0,88093.0,0.02270327]
[1769509261147,0.11369299,88107.0,88093.0,0.02270327]
[1769509261404,0.11369299,88106.0,88093.0,0.02270327]
[1769509261606,0.0225132,88109.0,88093.0,0.02270327]
[1769509261814,0.11369045,88108.0,88093.0,0.02270327]
[1769509262026,0.11369045,88107.0,88093.0,0.02270327]
[1769509262365,0.11369045,88107.0,88094.0,0.1320013]
[1769509262708,0.11369045,88106.0,88094.0,0.1320013]
[1769509263007,0.15488199,88116.0,88094.0,0.1320013]
[1769509263145,0.11368597,88111.0,88094.0,0.1320013]
[1769509263409,0.11368597,88110.0,88094.0,0.1320013]
[1769509263625,0.11368597,88109.0,88094.0,0.1320013]
[1769509263825,0.11368597,88108.0,88094.0,0.1320013]
[1769509264079,0.11368597,88107.0,88094.0,0.1320013]
[1769509264242,0.15488199,88116.0,88094.0,0.1320013]
[1769509264442,0.11367708,88111.0,88094.0,0.1320013]
[1769509264638,0.11367708,88110.0,88094.0,0.1320013]
[1769509264852,0.15488199,88116.0,88094.0,0.1320013]
[1769509264853,0.11367708,88109.0,88094.0,0.1320013]
[1769509265064,0.11367708,88108.0,88094.0,0.1320013]
[1769509265284,0.11367708,88107.0,88094.0,0.1320013]
[1769509265583,0.15488199,88116.0,88094.0,0.1320013]
[1769509265764,0.11367266,88111.0,88094.0,0.1320013]
[1769509265982,0.11367266,88110.0,88095.0,0.04340611]
[1769509266183,0.11367266,88109.0,88094.0,0.14881345]
[1769509266391,0.11367266,88108.0,88094.0,0.14881345]
[1769509266569,0.0229132,88112.0,88094.0,0.14881345]
[1769509266906,0.11366843,88111.0,88095.0,0.1320013]
[1769509267052,0.11366843,88110.0,88095.0,0.1320013]
[1769509267255,0.11366843,88109.0,88095.0,0.1320013]
[1769509267474,0.0229132,88112.0,88095.0,0.1320013]
[1769509267475,0.11366843,88108.0,88095.0,0.1320013]
[1769509267672,0.11366843,88107.0,88095.0,0.1320013]
[1769509267873,0.11366843,88106.0,88095.0,0.1320013]
[1769509268079,0.0229132,88112.0,88095.0,0.1320013]
[1769509268298,0.11366421,88111.0,88095.0,0.1320013]
[1769509268536,0.11366421,88110.0,88095.0,0.1320013]
[1769509268829,0.11366421,88109.0,88095.0,0.1320013]
[1769509269042,0.11366421,88108.0,88095.0,0.1320013]
[1769509269179,0.11366421,88107.0,88095.0,0.1320013]
[1769509269377,0.11366421,88106.0,88095.0,0.1320013]
[1769509269708,0.0004,88112.0,88098.0,0.1320013]
[1769509269908,0.0004,88112.0,88081.0,0.16994655]
[1769509269909,0.13236879,88109.0,88084.0,0.01149829]
[1769509270112,0.01,88098.0,88085.0,0.01135267]
[1769509270314,0.01,88098.0,88086.0,0.01135254]
[1769509270658,0.0225132,88103.0,88086.0,0.14335384]
[1769509270858,0.0225132,88103.0,88086.0,0.1320013]
[1769509271655,0.0225132,88103.0,88086.0,0.2001165]
[1769509272191,0.0225132,88103.0,88087.0,0.1320013]
[1769509272892,0.0225132,88103.0,88087.0,0.14335371]
[1769509273048,0.0225132,88103.0,88087.0,0.1320013]
[1769509273496,0.0225132,88103.0,88088.0,0.01135228]
[1769509273763,0.0225132,88103.0,88087.0,0.14335371]
[1769509274421,0.0225132,88103.0,88088.0,0.14335358]
[1769509274590,0.0225132,88103.0,88089.0,0.01135215]
[1769509274787,0.0225132,88103.0,88089.0,0.1320013]
[1769509274989,0.0225132,88103.0,88089.0,0.14335345]
[1769509276861,0.0225132,88103.0,88090.0,0.01135202]
[1769509277063,0.0225132,88103.0,88089.0,0.20011415]
[1769509277275,0.0225132,88103.0,88089.0,0.1320013]
[1769509277571,0.0225132,88103.0,88090.0,0.34932401]
[1769509277913,0.0225132,88108.0,88091.0,0.1320013]
[1769509280094,0.0225132,88108.0,88092.0,0.00663373]
[1769509281897,0.0225132,88108.0,88093.0,0.13611951]
[1769509282034,0.0225132,88108.0,88094.0,0.0066335]
[1769509284296,0.02424629,88107.0,88094.0,0.0066335]
[1769509284511,0.02424629,88107.0,88090.0,0.12747229]
[1769509284698,0.02424629,88107.0,88091.0,0.00663334]
[1769509286280,0.02424629,88107.0,88091.0,0.13410563]
[1769509288214,0.33797199,88101.0,88091.0,0.00663334]
[1769509288433,0.02424629,88098.0,88084.0,0.0001455]
[1769509288907,0.02424629,88096.0,88084.0,0.0001455]
[1769509293680,0.33797199,88101.0,88084.0,0.0001455]
[1769509293897,0.36221828,88101.0,88084.0,0.0001455]
[1769509294090,0.33797199,88101.0,88084.0,0.0001455]
[1769509294256,0.02424629,88100.0,88084.0,0.0001455]
[1769509295954,0.02393058,88099.0,88084.0,0.0001455]
[1769509298326,0.02424629,88100.0,88084.0,0.0001455]
[1769509302495,0.02424629,88092.0,88084.0,0.0001455]
[1769509302800,0.1389231,88091.0,88084.0,0.0001455]
[1769509310181,0.1389231,88097.0,88084.0,0.0001455]
[1769509310377,0.1389231,88096.0,88084.0,0.0001455]
[1769509341073,0.1389231,88096.0,88081.0,0.02543798]
[1769509347636,0.1389231,88096.0,88081.0,0.02352622]
[1769509347834,0.1389231,88096.0,88082.0,0.02352622]
[1769509354062,0.1389231,88096.0,88083.0,0.00799962]
[1769509354213,0.05161319,88095.0,88083.0,0.00799962]
[1769509356027,0.05161319,88095.0,88083.0,0.03152584]
[1769509363684,0.05161319,88095.0,88083.0,0.02352622]
[1769509372028,0.05161319,88095.0,88083.0,0.02320153]
[1769509372530,0.1389231,88096.0,88083.0,0.02320153]
[1769509379811,0.1389231,88096.0,88083.0,0.02287687]
[1769509380603,0.13129072,88082.0,88056.0,0.02359525]
[1769509380824,0.13129072,88069.0,88056.0,0.02359525]
[1769509381030,0.13129072,88069.0,88050.0,0.05769049]
[1769509381237,0.15525051,88069.0,88050.0,0.02359525]
[1769509382259,0.15525051,88069.0,88044.0,0.02728]
[1769509382260,0.15525051,88057.0,88044.0,0.02728]
[1769509382434,0.02395979,88052.0,88033.0,0.02359525]
[1769509382643,0.02395979,88048.0,88030.0,1.755]
[1769509382824,0.13129072,88047.0,88030.0,1.755]
[1769509383013,0.13129072,88045.0,88030.0,1.755]
[1769509384243,0.13129072,88045.0,88030.0,2.09308511]
[1769509386380,0.02395979,88048.0,88030.0,2.10444487]
[1769509386610,0.02395979,88057.0,88038.0,0.36168036]
[1769509386818,0.14878995,88056.0,88048.0,0.33808511]
[1769509387057,0.04145902,88056.0,88040.0,0.33808511]
[1769509387277,0.13129072,88055.0,88040.0,0.33808511]
[1769509388202,0.16366895,88054.0,88040.0,0.33808511]
[1769509388423,0.13129072,88054.0,88040.0,0.33808511]
[1769509391147,0.04145902,88056.0,88040.0,0.33808511]
[1769509391418,0.03410666,88059.0,88042.0,0.13303517]
[1769509391608,0.03410666,88059.0,88043.0,0.02359525]
[1769509391794,0.13157562,88061.0,88043.0,0.02359525]
[1769509392004,0.15553541,88061.0,88043.0,0.02359525]
[1769509392240,0.14684426,88060.0,88043.0,0.02359525]
[1769509392420,0.14684426,88060.0,88044.0,0.00113491]
[1769509395316,0.14684426,88060.0,88043.0,0.02473016]
[1769509395773,0.14684426,88060.0,88043.0,0.02359525]
[1769509395966,0.14684426,88060.0,88043.0,0.03495333]
[1769509396173,0.14684426,88060.0,88043.0,0.02359525]
[1769509396174,0.02051932,88059.0,88043.0,0.02359525]